[Event "Titled Tuesday Blitz November 14 Early 2023"]
[White "TomLiu777"]
[Black "Rosen, Eric"]
[BlackFideId "2032562"]
[WhiteElo "2533"]
[BlackElo "2772"]
[Result "1/2-1/2"]
[Round "6"]
[TimeControl "180+1"]
[Date "2023.11.14"]
[WhiteClock "0:00:06"]
[BlackClock "0:00:02"]
[Board "96"]

1. c4 {[%clk 0:02:53]}  e6 {[%clk 0:03:00]} 2. Nc3 {[%clk 0:02:52]}  d5 {[%clk 0:03:00]} 3. d4 {[%clk 0:02:52]}  Nf6 {[%clk 0:03:01]} 4. Bg5 {[%clk 0:02:51]}  c6 {[%clk 0:03:00]} 5. cxd5 {[%clk 0:02:51]}  exd5 {[%clk 0:03:01]} 6. e3 {[%clk 0:02:51]}  Bd6 {[%clk 0:03:00]} 7. Bd3 {[%clk 0:02:51]}  h6 {[%clk 0:02:58]} 8. Bh4 {[%clk 0:02:51]}  O-O {[%clk 0:02:58]} 9. Qc2 {[%clk 0:02:48]}  Re8 {[%clk 0:02:58]} 10. Nge2 {[%clk 0:02:47]}  a5 {[%clk 0:02:58]} 11. O-O {[%clk 0:02:36]}  Bxh2+ {[%clk 0:02:58]} 12. Kxh2 {[%clk 0:02:34]}  Ng4+ {[%clk 0:02:57]} 13. Kg3 {[%clk 0:02:35]}  g5 {[%clk 0:02:58]} 14. Bf5 {[%clk 0:02:27]}  gxh4+ {[%clk 0:02:56]} 15. Kh3 {[%clk 0:02:16]}  Qg5 {[%clk 0:02:47]} 16. Bxc8 {[%clk 0:02:12]}  Rxc8 {[%clk 0:02:47]} 17. g3 {[%clk 0:01:50]}  Nf6 {[%clk 0:01:54]} 18. Kg2 {[%clk 0:01:19]}  Ng4 {[%clk 0:01:12]} 19. Kh3 {[%clk 0:01:17]}  Nf6 {[%clk 0:00:54]} 20. Kg2 {[%clk 0:01:17]}  hxg3 {[%clk 0:00:48]} 21. Nxg3 {[%clk 0:01:16]}  Qg6 {[%clk 0:00:49]} 22. Qf5 {[%clk 0:01:04]}  Nbd7 {[%clk 0:00:45]} 23. Rh1 {[%clk 0:01:02]}  Kh7 {[%clk 0:00:29]} 24. Rag1 {[%clk 0:00:49]}  Rg8 {[%clk 0:00:29]} 25. Kf1 {[%clk 0:00:49]}  Qxf5 {[%clk 0:00:29]} 26. Nxf5 {[%clk 0:00:49]}  Rxg1+ {[%clk 0:00:29]} 27. Kxg1 {[%clk 0:00:47]}  h5 {[%clk 0:00:28]} 28. Ne2 {[%clk 0:00:43]}  Kg6 {[%clk 0:00:24]} 29. Nd6 {[%clk 0:00:41]}  Rf8 {[%clk 0:00:05]} 30. Nf4+ {[%clk 0:00:39]}  Kh6 {[%clk 0:00:05]} 31. Nxb7 {[%clk 0:00:31]}  Rb8 {[%clk 0:00:05]} 32. Nd6 {[%clk 0:00:30]}  Rxb2 {[%clk 0:00:05]} 33. Nxf7+ {[%clk 0:00:28]}  Kg7 {[%clk 0:00:06]} 34. Ne5 {[%clk 0:00:25]}  Rxa2 {[%clk 0:00:05]} 35. Kg2 {[%clk 0:00:21]}  a4 {[%clk 0:00:04]} 36. Nxh5+ {[%clk 0:00:19]}  Nxh5 {[%clk 0:00:04]} 37. Nxd7 {[%clk 0:00:18]}  Nf6 {[%clk 0:00:02]} 38. Nxf6 {[%clk 0:00:18]}  Kxf6 {[%clk 0:00:03]} 39. Rh6+ {[%clk 0:00:19]}  Kf5 {[%clk 0:00:04]} 40. Rxc6 {[%clk 0:00:20]}  Ke4 {[%clk 0:00:03]} 41. Kg3 {[%clk 0:00:17]}  Ra1 {[%clk 0:00:03]} 42. Re6+ {[%clk 0:00:12]}  Kd3 {[%clk 0:00:03]} 43. Re5 {[%clk 0:00:12]}  Kc4 {[%clk 0:00:03]} 44. e4 {[%clk 0:00:08]}  dxe4 {[%clk 0:00:02]} 45. Rxe4 {[%clk 0:00:07]}  a3 {[%clk 0:00:02]} 46. Re8 {[%clk 0:00:07]}  Kxd4 {[%clk 0:00:01]} 47. Ra8 {[%clk 0:00:07]}  Kc4 {[%clk 0:00:01]} 48. f4 {[%clk 0:00:06]}  Kb3 {[%clk 0:00:02]} 49. Rb8+ {[%clk 0:00:06]}  Kc3 {[%clk 0:00:02]} 50. Rc8+ {[%clk 0:00:07]}  Kb2 {[%clk 0:00:02]} 51. Rb8+ {[%clk 0:00:07]}  Kc2 {[%clk 0:00:03]} 52. Rc8+ {[%clk 0:00:07]}  Kd2 {[%clk 0:00:04]} 53. Rd8+ {[%clk 0:00:07]}  Kc1 {[%clk 0:00:04]} 54. Rc8+ {[%clk 0:00:07]}  Kb2 {[%clk 0:00:05]} 55. Rb8+ {[%clk 0:00:08]}  Ka2 {[%clk 0:00:05]} 56. f5 {[%clk 0:00:07]}  Rf1 {[%clk 0:00:06]} 57. Kg4 {[%clk 0:00:07]}  Rf2 {[%clk 0:00:05]} 58. Kg5 {[%clk 0:00:07]}  Rb2 {[%clk 0:00:05]} 59. Ra8 {[%clk 0:00:07]}  Rg2+ {[%clk 0:00:05]} 60. Kf6 {[%clk 0:00:07]}  Kb2 {[%clk 0:00:03]} 61. Ke6 {[%clk 0:00:07]}  Re2+ {[%clk 0:00:03]} 62. Kf7 {[%clk 0:00:07]}  a2 {[%clk 0:00:03]} 63. Rxa2+ {[%clk 0:00:07]}  Kxa2 {[%clk 0:00:03]} 64. f6 {[%clk 0:00:08]}  Kb3 {[%clk 0:00:03]} 65. Kg8 {[%clk 0:00:08]}  Rg2+ {[%clk 0:00:04]} 66. Kf8 {[%clk 0:00:08]}  Kc4 {[%clk 0:00:03]} 67. f7 {[%clk 0:00:08]}  Kd5 {[%clk 0:00:03]} 68. Ke8 {[%clk 0:00:07]}  Re2+ {[%clk 0:00:04]} 69. Kd7 {[%clk 0:00:06]}  Rf2 {[%clk 0:00:03]} 70. Ke8 {[%clk 0:00:06]}  Re2+ {[%clk 0:00:02]} 71. Kd7 {[%clk 0:00:06]}  Ra2 {[%clk 0:00:01]} 72. f8=Q {[%clk 0:00:05]}  Ra7+ {[%clk 0:00:02]} 73. Ke8 {[%clk 0:00:05]}  Ra8+ {[%clk 0:00:01]} 74. Kf7 {[%clk 0:00:05]}  Rxf8+ {[%clk 0:00:02]} 75. Kxf8 {[%clk 0:00:06]} 1/2-1/2


[Site "https://www.chess.com"]

[Event "Titled Tuesday Blitz November 14 Early 2023"]
[White "Purtseladze, Maka"]
[Black "Panchenko, Dmitry"]
[WhiteFideId "13602659"]
[BlackFideId "4169158"]
[WhiteElo "2532"]
[BlackElo "2740"]
[Result "0-1"]
[Round "6"]
[TimeControl "180+1"]
[Date "2023.11.14"]
[WhiteClock "0:00:06"]
[BlackClock "0:00:48"]
[Board "97"]

1. d4 {[%clk 0:03:00]}  d5 {[%clk 0:02:59]} 2. c4 {[%clk 0:02:59]}  dxc4 {[%clk 0:02:56]} 3. e3 {[%clk 0:02:58]}  Nf6 {[%clk 0:02:56]} 4. Bxc4 {[%clk 0:02:58]}  e6 {[%clk 0:02:56]} 5. Nf3 {[%clk 0:02:58]}  a6 {[%clk 0:02:55]} 6. Qe2 {[%clk 0:02:58]}  b5 {[%clk 0:02:51]} 7. Bd3 {[%clk 0:02:57]}  c5 {[%clk 0:02:49]} 8. O-O {[%clk 0:02:57]}  cxd4 {[%clk 0:02:49]} 9. exd4 {[%clk 0:02:52]}  Bb7 {[%clk 0:02:49]} 10. a4 {[%clk 0:02:53]}  b4 {[%clk 0:02:45]} 11. Nbd2 {[%clk 0:02:32]}  Be7 {[%clk 0:02:45]} 12. Ne4 {[%clk 0:02:33]}  Nbd7 {[%clk 0:02:43]} 13. Bf4 {[%clk 0:02:16]}  O-O {[%clk 0:02:36]} 14. Nd6 {[%clk 0:02:06]}  Bd5 {[%clk 0:02:27]} 15. Nc4 {[%clk 0:01:36]}  a5 {[%clk 0:02:24]} 16. b3 {[%clk 0:01:32]}  Nb6 {[%clk 0:02:19]} 17. Rac1 {[%clk 0:01:32]}  Nxc4 {[%clk 0:02:18]} 18. Bxc4 {[%clk 0:01:31]}  Rc8 {[%clk 0:02:11]} 19. Be5 {[%clk 0:01:25]}  Bb7 {[%clk 0:02:05]} 20. Ba6 {[%clk 0:01:15]}  Qd5 {[%clk 0:01:59]} 21. Bxb7 {[%clk 0:01:14]}  Qxb7 {[%clk 0:02:00]} 22. Qb5 {[%clk 0:01:12]}  Qa8 {[%clk 0:01:53]} 23. Nd2 {[%clk 0:01:05]}  Nd5 {[%clk 0:01:49]} 24. Nc4 {[%clk 0:01:01]}  Nc3 {[%clk 0:01:39]} 25. Qd7 {[%clk 0:01:01]}  Ne2+ {[%clk 0:01:17]} 26. Kh1 {[%clk 0:01:01]}  Nxc1 {[%clk 0:01:18]} 27. Rxc1 {[%clk 0:01:01]}  Bg5 {[%clk 0:01:11]} 28. f4 {[%clk 0:00:56]}  Rfd8 {[%clk 0:01:00]} 29. Qb5 {[%clk 0:00:55]}  Be7 {[%clk 0:01:00]} 30. Re1 {[%clk 0:00:24]}  Rd5 {[%clk 0:00:59]} 31. Nb6 {[%clk 0:00:12]}  Rxb5 {[%clk 0:00:56]} 32. Nxa8 {[%clk 0:00:06]}  Rb7 {[%clk 0:00:48]} 0-1


[Site "https://www.chess.com"]

[Event "Titled Tuesday Blitz November 14 Early 2023"]
[White "Hristodoulou, Panagiotis"]
[Black "HeroRubiksCube"]
[WhiteFideId "4214340"]
[WhiteElo "2638"]
[BlackElo "2520"]
[Result "1-0"]
[Round "6"]
[TimeControl "180+1"]
[Date "2023.11.14"]
[WhiteClock "0:02:08"]
[BlackClock "0:01:59"]
[Board "101"]

1. e4 {[%clk 0:03:00]}  e6 {[%clk 0:02:59]} 2. d4 {[%clk 0:02:58]}  d5 {[%clk 0:02:59]} 3. Nc3 {[%clk 0:02:58]}  Bb4 {[%clk 0:02:58]} 4. Ne2 {[%clk 0:02:58]}  dxe4 {[%clk 0:02:56]} 5. a3 {[%clk 0:02:57]}  Bxc3+ {[%clk 0:02:55]} 6. Nxc3 {[%clk 0:02:56]}  Nf6 {[%clk 0:02:54]} 7. Bg5 {[%clk 0:02:54]}  Nc6 {[%clk 0:02:49]} 8. Bb5 {[%clk 0:02:53]}  Bd7 {[%clk 0:02:48]} 9. Nxe4 {[%clk 0:02:50]}  a6 {[%clk 0:02:48]} 10. Ba4 {[%clk 0:02:29]}  h6 {[%clk 0:02:43]} 11. Bxf6 {[%clk 0:02:16]}  gxf6 {[%clk 0:02:44]} 12. Qd2 {[%clk 0:02:10]}  f5 {[%clk 0:02:43]} 13. Nc5 {[%clk 0:02:09]}  b6 {[%clk 0:02:25]} 14. Nxd7 {[%clk 0:02:07]}  Qxd7 {[%clk 0:02:26]} 15. d5 {[%clk 0:02:08]}  exd5 {[%clk 0:01:59]} 16. Qc3 {[%clk 0:02:08]} 1-0


[Site "https://www.chess.com"]

[Event "Titled Tuesday Blitz November 14 Early 2023"]
[White "Chernomordik, Pavel"]
[Black "Larino Nieto, David"]
[WhiteFideId "2804530"]
[BlackFideId "2256444"]
[WhiteElo "2510"]
[BlackElo "2622"]
[Result "1-0"]
[Round "6"]
[TimeControl "180+1"]
[Date "2023.11.14"]
[WhiteClock "0:00:19"]
[BlackClock "0:00:02"]
[Board "103"]

1. e4 {[%clk 0:03:00]}  a6 {[%clk 0:03:00]} 2. d4 {[%clk 0:02:58]}  b6 {[%clk 0:03:01]} 3. c4 {[%clk 0:02:52]}  c6 {[%clk 0:03:02]} 4. f4 {[%clk 0:02:49]}  d6 {[%clk 0:03:03]} 5. Nf3 {[%clk 0:02:47]}  e6 {[%clk 0:03:04]} 6. Bd3 {[%clk 0:02:46]}  Ra7 {[%clk 0:03:05]} 7. O-O {[%clk 0:02:45]}  f6 {[%clk 0:03:05]} 8. Nc3 {[%clk 0:02:42]}  g6 {[%clk 0:03:04]} 9. Re1 {[%clk 0:02:39]}  Rg7 {[%clk 0:03:01]} 10. Be3 {[%clk 0:02:31]}  h6 {[%clk 0:02:59]} 11. Qb3 {[%clk 0:02:11]}  g5 {[%clk 0:02:53]} 12. f5 {[%clk 0:02:04]}  Rb7 {[%clk 0:02:36]} 13. e5 {[%clk 0:01:53]}  exf5 {[%clk 0:02:28]} 14. exf6 {[%clk 0:01:40]}  Kf7 {[%clk 0:02:26]} 15. c5+ {[%clk 0:01:35]}  Be6 {[%clk 0:02:17]} 16. d5 {[%clk 0:01:27]}  cxd5 {[%clk 0:02:11]} 17. Qc2 {[%clk 0:01:23]}  Nxf6 {[%clk 0:01:47]} 18. Bxg5 {[%clk 0:01:19]}  Rg8 {[%clk 0:01:31]} 19. Bh4 {[%clk 0:01:16]}  bxc5 {[%clk 0:01:18]} 20. Bxf5 {[%clk 0:01:14]}  Bxf5 {[%clk 0:00:28]} 21. Qxf5 {[%clk 0:01:12]}  Rxb2 {[%clk 0:00:29]} 22. Qe6+ {[%clk 0:01:01]}  Kg7 {[%clk 0:00:28]} 23. Nxd5 {[%clk 0:01:00]}  Nbd7 {[%clk 0:00:23]} 24. Re4 {[%clk 0:00:43]}  Kh7 {[%clk 0:00:18]} 25. Bxf6 {[%clk 0:00:39]}  Rgxg2+ {[%clk 0:00:17]} 26. Kh1 {[%clk 0:00:39]}  Qa8 {[%clk 0:00:04]} 27. Qf7+ {[%clk 0:00:35]}  Bg7 {[%clk 0:00:04]} 28. Re7 {[%clk 0:00:26]}  Nxf6 {[%clk 0:00:01]} 29. Nxf6+ {[%clk 0:00:25]}  Kh8 {[%clk 0:00:02]} 30. Re8+ {[%clk 0:00:23]}  Qxe8 {[%clk 0:00:02]} 31. Qxe8+ {[%clk 0:00:20]}  Bf8 {[%clk 0:00:03]} 32. Qxf8+ {[%clk 0:00:19]}  Rg8 {[%clk 0:00:02]} 33. Qxg8# {[%clk 0:00:19]} 1-0


[Site "https://www.chess.com"]

[Event "Titled Tuesday Blitz November 14 Early 2023"]
[White "Ezat, Mohamed"]
[Black "Kanyamarala, Tarun"]
[WhiteFideId "10600906"]
[BlackFideId "45004714"]
[WhiteElo "2606"]
[BlackElo "2492"]
[Result "0-1"]
[Round "6"]
[TimeControl "180+1"]
[Date "2023.11.14"]
[WhiteClock "0:00:28"]
[BlackClock "0:00:37"]
[Board "105"]

1. d4 {[%clk 0:02:41]}  f5 {[%clk 0:02:57]} 2. e4 {[%clk 0:02:33]}  fxe4 {[%clk 0:02:57]} 3. Nc3 {[%clk 0:02:32]}  Nf6 {[%clk 0:02:57]} 4. Bg5 {[%clk 0:02:32]}  g6 {[%clk 0:02:58]} 5. h4 {[%clk 0:02:31]}  Bg7 {[%clk 0:02:46]} 6. h5 {[%clk 0:02:31]}  O-O {[%clk 0:02:45]} 7. hxg6 {[%clk 0:02:29]}  hxg6 {[%clk 0:02:44]} 8. Bc4+ {[%clk 0:02:26]}  e6 {[%clk 0:02:43]} 9. Nxe4 {[%clk 0:02:25]}  d5 {[%clk 0:02:43]} 10. Nxf6+ {[%clk 0:02:11]}  Bxf6 {[%clk 0:02:40]} 11. Qd3 {[%clk 0:02:11]}  Qe7 {[%clk 0:02:04]} 12. Qxg6+ {[%clk 0:02:02]}  Qg7 {[%clk 0:02:04]} 13. Qxg7+ {[%clk 0:02:03]}  Bxg7 {[%clk 0:02:04]} 14. Bd3 {[%clk 0:01:59]}  Bxd4 {[%clk 0:02:03]} 15. O-O-O {[%clk 0:01:54]}  Bf6 {[%clk 0:01:52]} 16. Bh6 {[%clk 0:01:25]}  Bg7 {[%clk 0:01:52]} 17. Bxg7 {[%clk 0:01:24]}  Kxg7 {[%clk 0:01:52]} 18. Rh7+ {[%clk 0:01:24]}  Kf6 {[%clk 0:01:48]} 19. Rxc7 {[%clk 0:01:24]}  Nc6 {[%clk 0:01:46]} 20. f4 {[%clk 0:01:24]}  Rg8 {[%clk 0:01:41]} 21. Rd2 {[%clk 0:01:22]}  Nb4 {[%clk 0:01:30]} 22. Nf3 {[%clk 0:01:19]}  Rg7 {[%clk 0:01:26]} 23. Rxg7 {[%clk 0:01:16]}  Kxg7 {[%clk 0:01:25]} 24. g4 {[%clk 0:01:16]}  Nxa2+ {[%clk 0:01:24]} 25. Kb1 {[%clk 0:01:15]}  Nb4 {[%clk 0:01:25]} 26. Ne5 {[%clk 0:01:15]}  b6 {[%clk 0:01:20]} 27. Rh2 {[%clk 0:01:14]}  Nxd3 {[%clk 0:01:19]} 28. cxd3 {[%clk 0:01:10]}  Ba6 {[%clk 0:01:19]} 29. Rh5 {[%clk 0:01:01]}  Rf8 {[%clk 0:01:15]} 30. Rg5+ {[%clk 0:01:00]}  Kh7 {[%clk 0:01:13]} 31. Rg6 {[%clk 0:00:39]}  Bxd3+ {[%clk 0:01:10]} 32. Nxd3 {[%clk 0:00:37]}  Kxg6 {[%clk 0:01:09]} 33. Ne5+ {[%clk 0:00:37]}  Kg7 {[%clk 0:01:08]} 34. Nd3 {[%clk 0:00:37]}  Rh8 {[%clk 0:01:06]} 35. g5 {[%clk 0:00:35]}  Kg6 {[%clk 0:01:03]} 36. Kc2 {[%clk 0:00:35]}  Kf5 {[%clk 0:01:03]} 37. Kc3 {[%clk 0:00:35]}  Rc8+ {[%clk 0:01:01]} 38. Kd4 {[%clk 0:00:34]}  Rc4+ {[%clk 0:01:01]} 39. Ke3 {[%clk 0:00:35]}  d4+ {[%clk 0:00:50]} 40. Kf3 {[%clk 0:00:34]}  Rc2 {[%clk 0:00:49]} 41. Nb4 {[%clk 0:00:30]}  Rxb2 {[%clk 0:00:43]} 42. Nc6 {[%clk 0:00:31]}  Rb3+ {[%clk 0:00:42]} 43. Kf2 {[%clk 0:00:31]}  Kxf4 {[%clk 0:00:40]} 44. Nxd4 {[%clk 0:00:30]}  Rb2+ {[%clk 0:00:40]} 45. Ke1 {[%clk 0:00:30]}  e5 {[%clk 0:00:38]} 46. Ne6+ {[%clk 0:00:30]}  Kf5 {[%clk 0:00:37]} 47. Nc7 {[%clk 0:00:28]}  Kxg5 {[%clk 0:00:37]} 0-1


[Site "https://www.chess.com"]

[Event "Titled Tuesday Blitz November 14 Early 2023"]
[White "Domingo Nunez, Alejandro"]
[Black "Janaszak, Dawid"]
[WhiteFideId "22245561"]
[BlackFideId "1119206"]
[WhiteElo "2480"]
[BlackElo "2603"]
[Result "0-1"]
[Round "6"]
[TimeControl "180+1"]
[Date "2023.11.14"]
[WhiteClock "0:00:00"]
[BlackClock "0:00:15"]
[Board "106"]

1. Nf3 {[%clk 0:03:00]}  g6 {[%clk 0:02:57]} 2. e4 {[%clk 0:02:59]}  c5 {[%clk 0:02:57]} 3. d4 {[%clk 0:02:59]}  cxd4 {[%clk 0:02:57]} 4. c3 {[%clk 0:03:00]}  d3 {[%clk 0:02:56]} 5. Bxd3 {[%clk 0:03:00]}  Bg7 {[%clk 0:02:57]} 6. c4 {[%clk 0:03:00]}  Nc6 {[%clk 0:02:57]} 7. h3 {[%clk 0:03:01]}  d6 {[%clk 0:02:56]} 8. O-O {[%clk 0:03:01]}  Nf6 {[%clk 0:02:56]} 9. Nc3 {[%clk 0:03:02]}  O-O {[%clk 0:02:56]} 10. Be3 {[%clk 0:03:02]}  b6 {[%clk 0:02:53]} 11. Rc1 {[%clk 0:03:02]}  Bb7 {[%clk 0:02:53]} 12. b3 {[%clk 0:03:02]}  Nd7 {[%clk 0:02:51]} 13. Bb1 {[%clk 0:02:58]}  Nc5 {[%clk 0:02:50]} 14. Qe2 {[%clk 0:02:57]}  Rc8 {[%clk 0:02:46]} 15. Rfd1 {[%clk 0:02:57]}  Qd7 {[%clk 0:02:37]} 16. Nd5 {[%clk 0:02:55]}  e6 {[%clk 0:02:35]} 17. Nc3 {[%clk 0:02:55]}  Rfd8 {[%clk 0:02:27]} 18. Bf4 {[%clk 0:02:29]}  Qe7 {[%clk 0:02:25]} 19. Nb5 {[%clk 0:02:29]}  e5 {[%clk 0:02:21]} 20. Be3 {[%clk 0:02:24]}  Ne6 {[%clk 0:02:10]} 21. Qd2 {[%clk 0:01:44]}  Bf8 {[%clk 0:01:53]} 22. Nc3 {[%clk 0:01:42]}  f6 {[%clk 0:01:47]} 23. Nd5 {[%clk 0:01:41]}  Qf7 {[%clk 0:01:48]} 24. a3 {[%clk 0:01:12]}  g5 {[%clk 0:01:47]} 25. b4 {[%clk 0:01:10]}  Ne7 {[%clk 0:01:45]} 26. Nh2 {[%clk 0:00:57]}  h5 {[%clk 0:01:41]} 27. Nf1 {[%clk 0:00:49]}  Nf4 {[%clk 0:01:32]} 28. Ng3 {[%clk 0:00:37]}  h4 {[%clk 0:01:32]} 29. Nf1 {[%clk 0:00:34]}  Neg6 {[%clk 0:01:33]} 30. Nh2 {[%clk 0:00:34]}  b5 {[%clk 0:01:22]} 31. Ng4 {[%clk 0:00:27]}  Bg7 {[%clk 0:01:22]} 32. Kh2 {[%clk 0:00:26]}  bxc4 {[%clk 0:01:17]} 33. Ndxf6+ {[%clk 0:00:21]}  Bxf6 {[%clk 0:01:15]} 34. Nh6+ {[%clk 0:00:21]}  Kg7 {[%clk 0:01:14]} 35. Nxf7 {[%clk 0:00:22]}  Kxf7 {[%clk 0:01:14]} 36. Ba2 {[%clk 0:00:18]}  Bxe4 {[%clk 0:01:09]} 37. Bxc4+ {[%clk 0:00:17]}  d5 {[%clk 0:01:08]} 38. Ba6 {[%clk 0:00:16]}  Rxc1 {[%clk 0:01:03]} 39. Qxc1 {[%clk 0:00:16]}  Rd7 {[%clk 0:00:54]} 40. Bc8 {[%clk 0:00:15]}  Re7 {[%clk 0:00:53]} 41. Qc6 {[%clk 0:00:12]}  Bxg2 {[%clk 0:00:47]} 42. Bc5 {[%clk 0:00:11]}  d4 {[%clk 0:00:43]} 43. Qd6 {[%clk 0:00:08]}  Re8 {[%clk 0:00:38]} 44. Qd7+ {[%clk 0:00:07]}  Be7 {[%clk 0:00:35]} 45. Qf5+ {[%clk 0:00:04]}  Kg7 {[%clk 0:00:36]} 46. Bxe7 {[%clk 0:00:03]}  Rxe7 {[%clk 0:00:33]} 47. Qxg5 {[%clk 0:00:03]}  Bf3 {[%clk 0:00:20]} 48. Rg1 {[%clk 0:00:03]}  Rf7 {[%clk 0:00:14]} 49. Qxe5+ {[%clk 0:00:03]}  Rf6 {[%clk 0:00:14]} 50. Qe7+ {[%clk 0:00:00]}  Rf7 {[%clk 0:00:15]} 0-1


[Site "https://www.chess.com"]

[Event "Titled Tuesday Blitz November 14 Early 2023"]
[White "Makaraci, Tunahan"]
[Black "JuniorJumper"]
[WhiteFideId "6356559"]
[WhiteElo "2466"]
[BlackElo "2595"]
[Result "1-0"]
[Round "6"]
[TimeControl "180+1"]
[Date "2023.11.14"]
[WhiteClock "0:00:08"]
[BlackClock "0:00:04"]
[Board "107"]

1. e4 {[%clk 0:03:00]}  b6 {[%clk 0:02:57]} 2. d4 {[%clk 0:02:57]}  Bb7 {[%clk 0:02:57]} 3. Bd3 {[%clk 0:02:57]}  e6 {[%clk 0:02:56]} 4. Be3 {[%clk 0:02:56]}  Nf6 {[%clk 0:02:56]} 5. Nd2 {[%clk 0:02:56]}  c5 {[%clk 0:02:53]} 6. c3 {[%clk 0:02:56]}  Be7 {[%clk 0:02:51]} 7. Ne2 {[%clk 0:02:56]}  O-O {[%clk 0:02:49]} 8. h3 {[%clk 0:02:56]}  d6 {[%clk 0:02:48]} 9. O-O {[%clk 0:02:55]}  Nbd7 {[%clk 0:02:48]} 10. Ng3 {[%clk 0:02:49]}  Rc8 {[%clk 0:02:43]} 11. Rc1 {[%clk 0:02:48]}  cxd4 {[%clk 0:02:30]} 12. cxd4 {[%clk 0:02:47]}  Rxc1 {[%clk 0:02:30]} 13. Qxc1 {[%clk 0:02:48]}  Qc8 {[%clk 0:02:31]} 14. Qb1 {[%clk 0:02:35]}  Ba6 {[%clk 0:02:29]} 15. Nf3 {[%clk 0:02:13]}  d5 {[%clk 0:02:17]} 16. e5 {[%clk 0:02:03]}  Bxd3 {[%clk 0:02:12]} 17. Qxd3 {[%clk 0:01:58]}  Ne8 {[%clk 0:02:13]} 18. Rc1 {[%clk 0:01:58]}  Qb7 {[%clk 0:02:13]} 19. Bg5 {[%clk 0:01:57]}  f6 {[%clk 0:01:55]} 20. exf6 {[%clk 0:01:57]}  Nexf6 {[%clk 0:01:50]} 21. Qe2 {[%clk 0:01:30]}  h6 {[%clk 0:01:00]} 22. Qxe6+ {[%clk 0:01:27]}  Rf7 {[%clk 0:01:00]} 23. Bxf6 {[%clk 0:01:14]}  Bxf6 {[%clk 0:01:00]} 24. Nf5 {[%clk 0:01:13]}  Nf8 {[%clk 0:00:56]} 25. Qe8 {[%clk 0:00:56]}  Qd7 {[%clk 0:00:39]} 26. Qxd7 {[%clk 0:00:48]}  Rxd7 {[%clk 0:00:40]} 27. Rc8 {[%clk 0:00:46]}  Kf7 {[%clk 0:00:40]} 28. Ne3 {[%clk 0:00:43]}  Ne6 {[%clk 0:00:38]} 29. Nf5 {[%clk 0:00:40]}  g6 {[%clk 0:00:35]} 30. Nxh6+ {[%clk 0:00:39]}  Kg7 {[%clk 0:00:35]} 31. Ng4 {[%clk 0:00:38]}  Nxd4 {[%clk 0:00:36]} 32. Rg8+ {[%clk 0:00:26]}  Kf7 {[%clk 0:00:30]} 33. Nge5+ {[%clk 0:00:24]}  Kxg8 {[%clk 0:00:25]} 34. Nxd7 {[%clk 0:00:21]}  Nxf3+ {[%clk 0:00:26]} 35. gxf3 {[%clk 0:00:22]}  Bxb2 {[%clk 0:00:26]} 36. Kf1 {[%clk 0:00:22]}  Kf7 {[%clk 0:00:22]} 37. Nb8 {[%clk 0:00:20]}  Ke6 {[%clk 0:00:15]} 38. Nc6 {[%clk 0:00:18]}  a5 {[%clk 0:00:11]} 39. Na7 {[%clk 0:00:18]}  Kd6 {[%clk 0:00:06]} 40. Ke2 {[%clk 0:00:18]}  Kc5 {[%clk 0:00:06]} 41. Nc8 {[%clk 0:00:16]}  Bf6 {[%clk 0:00:05]} 42. Kd3 {[%clk 0:00:14]}  b5 {[%clk 0:00:04]} 43. f4 {[%clk 0:00:11]}  b4 {[%clk 0:00:04]} 44. Na7 {[%clk 0:00:11]}  a4 {[%clk 0:00:04]} 45. Nc8 {[%clk 0:00:09]}  b3 {[%clk 0:00:05]} 46. axb3 {[%clk 0:00:09]}  axb3 {[%clk 0:00:05]} 47. Na7 {[%clk 0:00:10]}  b2 {[%clk 0:00:06]} 48. Kc2 {[%clk 0:00:11]}  Kb6 {[%clk 0:00:06]} 49. Nc8+ {[%clk 0:00:11]}  Kc7 {[%clk 0:00:06]} 50. Na7 {[%clk 0:00:11]}  Kb6 {[%clk 0:00:06]} 51. Nc8+ {[%clk 0:00:11]}  Kc5 {[%clk 0:00:07]} 52. Na7 {[%clk 0:00:10]}  Kc4 {[%clk 0:00:04]} 53. Nc6 {[%clk 0:00:08]}  d4 {[%clk 0:00:05]} 54. Ne5+ {[%clk 0:00:06]}  Bxe5 {[%clk 0:00:05]} 55. fxe5 {[%clk 0:00:06]}  Kd5 {[%clk 0:00:02]} 56. f4 {[%clk 0:00:05]}  g5 {[%clk 0:00:02]} 57. fxg5 {[%clk 0:00:05]}  Kxe5 {[%clk 0:00:02]} 58. Kxb2 {[%clk 0:00:05]}  Kf5 {[%clk 0:00:02]} 59. h4 {[%clk 0:00:05]}  Kg6 {[%clk 0:00:02]} 60. Kc2 {[%clk 0:00:05]}  Kh5 {[%clk 0:00:03]} 61. Kd3 {[%clk 0:00:06]}  Kxh4 {[%clk 0:00:03]} 62. g6 {[%clk 0:00:06]}  Kg5 {[%clk 0:00:04]} 63. g7 {[%clk 0:00:07]}  Kf6 {[%clk 0:00:05]} 64. g8=Q {[%clk 0:00:08]}  Ke5 {[%clk 0:00:06]} 65. Qg5+ {[%clk 0:00:08]}  Kd6 {[%clk 0:00:06]} 66. Kxd4 {[%clk 0:00:08]}  Kd7 {[%clk 0:00:07]} 67. Qf6 {[%clk 0:00:09]}  Kc7 {[%clk 0:00:05]} 68. Kc5 {[%clk 0:00:09]}  Kd7 {[%clk 0:00:05]} 69. Qf7+ {[%clk 0:00:09]}  Kd8 {[%clk 0:00:03]} 70. Kc6 {[%clk 0:00:08]}  Kc8 {[%clk 0:00:04]} 71. Qf8# {[%clk 0:00:08]} 1-0


[Site "https://www.chess.com"]

[Event "Titled Tuesday Blitz November 14 Early 2023"]
[White "Remolar Gallen, Jose"]
[Black "Nasir, Zehn"]
[WhiteFideId "2215187"]
[BlackFideId "2613239"]
[WhiteElo "2446"]
[BlackElo "2580"]
[Result "1-0"]
[Round "6"]
[TimeControl "180+1"]
[Date "2023.11.14"]
[WhiteClock "0:00:14"]
[BlackClock "0:00:06"]
[Board "110"]

1. d4 {[%clk 0:03:00]}  Nf6 {[%clk 0:02:44]} 2. c4 {[%clk 0:02:59]}  c5 {[%clk 0:02:43]} 3. d5 {[%clk 0:02:56]}  e6 {[%clk 0:02:42]} 4. Nc3 {[%clk 0:02:56]}  exd5 {[%clk 0:02:41]} 5. cxd5 {[%clk 0:02:56]}  d6 {[%clk 0:02:41]} 6. e4 {[%clk 0:02:57]}  a6 {[%clk 0:02:41]} 7. f4 {[%clk 0:02:55]}  g6 {[%clk 0:02:40]} 8. Nf3 {[%clk 0:02:54]}  Bg7 {[%clk 0:02:39]} 9. Bd3 {[%clk 0:02:51]}  O-O {[%clk 0:02:36]} 10. a4 {[%clk 0:02:47]}  Re8 {[%clk 0:02:34]} 11. O-O {[%clk 0:02:47]}  Bg4 {[%clk 0:02:34]} 12. h3 {[%clk 0:02:47]}  Bxf3 {[%clk 0:02:34]} 13. Qxf3 {[%clk 0:02:48]}  Nbd7 {[%clk 0:02:35]} 14. Bd2 {[%clk 0:02:44]}  Qc7 {[%clk 0:02:32]} 15. Rae1 {[%clk 0:02:43]}  c4 {[%clk 0:02:32]} 16. Bb1 {[%clk 0:02:43]}  Nc5 {[%clk 0:02:30]} 17. Be3 {[%clk 0:02:29]}  Nfd7 {[%clk 0:02:18]} 18. Qg3 {[%clk 0:02:17]}  Qb6 {[%clk 0:02:11]} 19. Qf2 {[%clk 0:01:51]}  Qb4 {[%clk 0:02:06]} 20. e5 {[%clk 0:01:32]}  dxe5 {[%clk 0:02:03]} 21. fxe5 {[%clk 0:01:32]}  Kh8 {[%clk 0:01:11]} 22. Bd4 {[%clk 0:01:25]}  Nd3 {[%clk 0:00:57]} 23. Bxd3 {[%clk 0:01:22]}  cxd3 {[%clk 0:00:58]} 24. Re4 {[%clk 0:01:16]}  Qe7 {[%clk 0:00:36]} 25. e6 {[%clk 0:00:45]}  f5 {[%clk 0:00:34]} 26. exd7 {[%clk 0:00:33]}  fxe4 {[%clk 0:00:31]} 27. dxe8=Q+ {[%clk 0:00:33]}  Rxe8 {[%clk 0:00:32]} 28. Bxg7+ {[%clk 0:00:26]}  Kxg7 {[%clk 0:00:33]} 29. Qd4+ {[%clk 0:00:25]}  Kg8 {[%clk 0:00:30]} 30. d6 {[%clk 0:00:21]}  Qe6 {[%clk 0:00:29]} 31. d7 {[%clk 0:00:20]}  Rd8 {[%clk 0:00:30]} 32. Nxe4 {[%clk 0:00:20]}  d2 {[%clk 0:00:14]} 33. Nf6+ {[%clk 0:00:19]}  Kg7 {[%clk 0:00:11]} 34. Ng4+ {[%clk 0:00:15]}  Kg8 {[%clk 0:00:06]} 35. Nh6# {[%clk 0:00:14]} 1-0


[Site "https://www.chess.com"]